bitfinex-derivatives/quotes_BTCF0:USTF0_20251217
["timestamp","ask_amount","ask_price","bid_price","bid_amount"]
[1766004945374,0.0001746,85965.0,85956.0,0.0042716]
[1766004945983,0.0001746,85965.0,85960.0,0.00443394]
[1766004946479,0.0001746,85965.0,85958.0,0.56292]
[1766004946480,0.0001746,85965.0,85962.0,0.00455193]
[1766004947276,0.3608,85967.0,85962.0,0.00455193]
[1766004947585,0.3608,85967.0,85958.0,0.56292]
[1766004949381,0.3608,85967.0,85959.0,0.73296]
[1766004952185,0.3608,85967.0,85960.0,0.73268]
[1766004952378,0.3608,85967.0,85952.0,0.011638]
[1766004952584,0.3608,85967.0,80547.0,1.0]
[1766004952585,0.33851555,85955.0,85898.0,0.00232836]
[1766004952780,0.0116428,85917.0,85898.0,0.00232836]
[1766004952986,0.3608,85906.0,85898.0,0.00232836]
[1766004953378,0.19413,85906.0,85898.0,0.00232836]
[1766004953576,0.00017461,85911.0,85900.0,0.3608]
[1766004953786,0.0116418,85925.0,85910.0,0.3608]
[1766004954092,0.0116418,85925.0,85918.0,0.3608]
[1766004954389,0.0116421,85923.0,85918.0,0.3608]
[1766004954585,0.0116421,85923.0,85917.0,0.7266]
[1766004954791,0.0116425,85919.0,85915.0,0.57224]
[1766004955092,0.3608,85920.0,85915.0,0.57224]
[1766004955290,0.0116425,85919.0,85915.0,0.57224]
[1766004955896,0.0116429,85917.0,85911.0,0.00017461]
[1766004956187,0.3608,85920.0,85912.0,0.49828]
[1766004956577,0.001,85919.0,85912.0,0.49828]
[1766004956976,0.3608,85920.0,85912.0,0.49828]
[1766004957191,0.001,85917.0,85912.0,0.49828]
[1766004958483,0.001,85917.0,85911.0,0.00017461]
[1766004958677,0.001,85917.0,85912.0,0.63512]
[1766004959684,0.001,85919.0,85912.0,0.63512]
[1766004960080,0.3608,85920.0,85912.0,0.63512]
[1766004960285,0.002,85917.0,85912.0,0.63512]
[1766004960693,0.3608,85920.0,85912.0,0.63512]
[1766004960900,0.001,85919.0,85912.0,0.63512]
[1766004961397,0.001,85919.0,85913.0,0.6728]
[1766004961587,0.001,85919.0,85914.0,0.69096]
[1766004961786,0.001,85919.0,85915.0,0.69952]
[1766004962394,0.001,85917.0,85915.0,0.69952]
[1766004962597,0.33185,85920.0,85915.0,0.69952]
[1766004963092,0.001,85919.0,85915.0,0.69952]
[1766004963597,0.33185,85920.0,85915.0,0.69952]
[1766004964500,0.33185,85920.0,85915.0,0.711163]
[1766004965704,0.00017461,85929.0,85919.0,0.3724425]
[1766004965907,0.00017461,85929.0,85927.0,0.3608]
[1766004966202,1e-08,85929.0,85927.0,0.3608]
[1766004966501,1e-08,85929.0,85928.0,0.73312]
[1766004967094,1e-08,85929.0,85927.0,0.3608]
[1766004967311,1e-08,85929.0,85928.0,0.73316]
[1766004967504,0.3608,85944.0,85929.0,0.0116411]
[1766004967705,0.37425858,85944.0,85934.0,0.3608]
[1766004968305,0.0116376,85956.0,85934.0,0.3724404]
[1766004968506,0.0116385,85949.0,85935.0,0.19852]
[1766004968707,0.10524769,85949.0,85936.0,0.00017461]
[1766004969014,0.35015395,85950.0,85936.0,0.00017461]
[1766004969305,0.0116389,85946.0,85936.0,0.00017461]
[1766004969510,0.0116386,85949.0,85936.0,0.00017461]
[1766004970010,0.45387519,85952.0,85936.0,0.36097461]
[1766004970011,0.46551329,85952.0,85936.0,0.36097461]
[1766004970512,0.47879406,85952.0,85936.0,0.36097461]
[1766004970713,0.0116384,85950.0,85936.0,0.36097461]
[1766004970914,0.001,85949.0,85936.0,0.36097461]
[1766004972409,0.0116387,85948.0,85936.0,0.36097461]
[1766004972602,0.46815596,85952.0,85936.0,0.36097461]
[1766004972998,0.001,85949.0,85936.0,0.36097461]
[1766004973413,0.0116391,85945.0,85936.0,1.09429461]
[1766004973798,0.0116395,85942.0,85936.0,1.09429461]
[1766004974110,0.46715596,85952.0,85936.0,1.09429461]
[1766004974111,0.46815596,85952.0,85936.0,1.09429461]
[1766004974307,0.46815596,85952.0,85936.0,0.36097461]
[1766004974520,0.001,85952.0,85949.0,0.3608]
[1766004975901,0.01306863,85954.0,85949.0,0.3608]
[1766004976502,0.3608,85951.0,85936.0,0.36097461]
[1766004976700,0.3608,85951.0,85939.0,0.3608]
[1766004976912,0.0116386,85948.0,85939.0,0.3608]
[1766004977110,0.3608,85951.0,85936.0,0.00017461]
[1766004977111,0.3608,85943.0,85936.0,0.00017461]
[1766004977411,0.3608,85943.0,85933.0,0.35596]
[1766004978008,0.3724393,85943.0,85933.0,0.35596]
[1766004979513,0.3608,85943.0,85932.0,0.0116408]
[1766004980410,0.3608,85943.0,85929.0,0.00017461]
[1766004980411,0.3608,85934.0,85929.0,0.00017461]
[1766004980612,0.3608,85934.0,85923.0,0.011642]
[1766004980807,0.3608,85934.0,85920.0,0.0116423]
[1766004981221,0.3608,85934.0,85917.0,0.3724427]
[1766004981418,0.3608,85934.0,85919.0,0.0116425]
[1766004981615,0.3608,85934.0,85921.0,0.0116423]
[1766004982016,0.3618,85943.0,85933.0,0.3608]
[1766004982318,0.3608,85943.0,85933.0,0.3608]
[1766004982511,0.0116389,85947.0,85933.0,0.3608]
[1766004983115,0.0116391,85945.0,85933.0,0.3608]
[1766004983318,0.011639,85946.0,85933.0,0.3608]
[1766004983820,0.01181321,85949.0,85933.0,0.3608]
[1766004984021,0.0116388,85947.0,85933.0,0.3608]
[1766004984316,0.0116391,85945.0,85933.0,0.3608]
[1766004984512,0.00017461,85949.0,85933.0,0.3608]
[1766004985104,0.3608,85940.0,85923.0,0.011642]
[1766004985317,0.001,85947.0,85918.0,1e-08]
[1766004985318,0.0116419,85924.0,85918.0,1e-08]
[1766004985523,0.3608,85919.0,85918.0,1e-08]
[1766004985708,0.3608,85930.0,85918.0,1e-08]
[1766004986016,0.3724411,85930.0,85918.0,1e-08]
[1766004986407,0.3608,85930.0,85918.0,1e-08]
[1766004987320,0.45352655,85930.0,85918.0,1e-08]
[1766004987523,0.3608,85930.0,85918.0,1e-08]
[1766004987719,0.3618,85930.0,85918.0,1e-08]
[1766004988423,0.3608,85930.0,85918.0,1e-08]
[1766004988720,0.0116412,85929.0,85918.0,1e-08]
[1766004990923,0.3608,85930.0,85918.0,1e-08]
[1766004991219,0.3608,85930.0,85919.0,0.0116425]
[1766004991722,0.3608,85930.0,85918.0,0.01164251]
[1766004991919,0.00017461,85933.0,85929.0,0.3608]
[1766004994424,0.00117461,85933.0,85929.0,0.3608]
[1766004997025,0.00017461,85933.0,85929.0,0.3608]
[1766004997726,0.00117461,85933.0,85929.0,0.3608]
[1766004997920,1e-08,85933.0,85932.0,0.0116408]
[1766004998222,0.001,85933.0,85929.0,0.3608]
[1766004998425,0.001,85933.0,85920.0,0.3608]
[1766004998624,0.001,85933.0,85923.0,0.011642]
[1766004998926,0.001,85933.0,85920.0,0.3608]
[1766004999116,0.001,85933.0,85921.0,0.0116421]
[1766004999314,0.3724408,85932.0,85920.0,0.3608]
[1766005000122,0.3724408,85932.0,85920.0,0.3724424]
[1766005000923,0.3734408,85932.0,85920.0,0.3724424]
[1766005001319,0.3724408,85932.0,85920.0,0.3724424]
[1766005001522,0.23112826,85930.0,85920.0,0.3608]
[1766005001727,0.3608,85924.0,85918.0,1e-08]
[1766005002230,0.0116424,85921.0,85918.0,1e-08]
[1766005002635,0.0116424,85921.0,85893.0,0.3608]
[1766005002636,0.0116446,85904.0,85893.0,0.3608]
[1766005002927,0.3608,85906.0,85893.0,0.3608]
[1766005003129,0.02912558,85922.0,85905.0,0.3608]
[1766005003428,0.3608,85918.0,85905.0,0.0116444]
[1766005003933,0.3608,85918.0,85903.0,0.36097461]
[1766005004528,0.3608,85918.0,85906.0,0.0116442]
[1766005004923,0.3608,85918.0,85903.0,0.37261921]
[1766005005429,0.3608,85918.0,85903.0,0.36097461]
[1766005005627,0.3608,85918.0,85904.0,0.0116446]
[1766005005821,0.3608,85918.0,85906.0,0.0116443]
[1766005006029,0.3608,85918.0,85905.0,0.0116444]
[1766005006737,0.3608,85918.0,85903.0,0.36097461]
[1766005007239,0.3608,85918.0,85904.0,0.0116446]
[1766005007538,0.3608,85918.0,85905.0,0.001]
[1766005008033,0.3608,85918.0,85904.0,0.0116446]
[1766005008236,0.0116431,85915.0,85903.0,0.36197461]
[1766005008736,0.0116437,85911.0,85903.0,0.36197461]
[1766005008927,0.0116433,85914.0,85903.0,0.36197461]
[1766005009434,0.0116433,85914.0,85905.0,0.001]
[1766005010020,0.0116433,85914.0,85903.0,0.36097461]
[1766005010932,0.0116429,85917.0,85903.0,0.36097461]
[1766005011830,0.0116429,85917.0,85903.0,0.37261921]
[1766005012044,0.3608,85918.0,85911.0,0.3608]
[1766005013427,0.011643,85916.0,85903.0,0.36097461]
[1766005013629,0.3608,85918.0,85904.0,0.0116445]
[1766005014029,0.00017461,85920.0,85906.0,0.0116443]
[1766005014222,0.00017461,85920.0,85910.0,0.3608]
[1766005014424,0.01181701,85920.0,85910.0,0.3608]
[1766005015536,0.00017461,85920.0,85912.0,0.0116434]
[1766005015841,0.3608,85925.0,85919.0,0.0116425]
[1766005016039,0.10589539,85937.0,85921.0,0.3608]
[1766005016538,0.02837013,85935.0,85921.0,0.3608]
[1766005016738,0.02854474,85935.0,85921.0,0.3608]
[1766005017238,0.04018514,85935.0,85921.0,0.3608]
[1766005017435,0.04018514,85935.0,85921.0,0.3618]
[1766005018134,0.0116406,85934.0,85921.0,0.3618]
[1766005018441,0.0116405,85934.0,85921.0,0.3618]
[1766005019522,0.0116405,85934.0,85921.0,0.3608]
[1766005020133,0.02854474,85935.0,85921.0,0.3608]
[1766005020134,0.0116412,85930.0,85921.0,0.3608]
[1766005020334,0.02854474,85935.0,85921.0,0.3608]
[1766005020839,0.0116409,85932.0,85921.0,0.3608]
[1766005022743,0.02854474,85935.0,85921.0,0.3608]
[1766005022933,0.0116412,85930.0,85921.0,0.3608]
[1766005023442,0.02854474,85935.0,85921.0,0.3608]
[1766005023443,0.0116414,85928.0,85921.0,0.3608]
[1766005023930,0.011641,85931.0,85921.0,0.3608]
[1766005024831,0.09425519,85937.0,85930.0,0.3608]
[1766005025038,0.3608,85953.0,85930.0,0.372441]
[1766005025238,0.3608,85958.0,85942.0,0.3608]
[1766005025540,0.39028249,85958.0,85942.0,0.3608]
[1766005025734,0.011638,85953.0,85942.0,0.3608]
[1766005025934,0.00017461,85956.0,85942.0,0.3608]
[1766005026133,0.0116384,85950.0,85942.0,0.3608]
[1766005026627,0.011638,85953.0,85942.0,0.3608]
[1766005026825,0.0116383,85951.0,85942.0,0.3608]
[1766005027240,0.09256591,85956.0,85942.0,0.3608]
[1766005028744,0.0116383,85951.0,85942.0,0.3608]
[1766005029244,0.09256591,85956.0,85942.0,0.3608]
[1766005029245,0.0116386,85949.0,85942.0,0.3608]
[1766005032049,0.0116382,85952.0,85942.0,0.3608]
[1766005032343,0.10420351,85956.0,85942.0,0.3724394]
[1766005032645,0.09256591,85956.0,85944.0,0.011639]
[1766005033038,0.10420341,85956.0,85949.0,0.3608]
[1766005033346,0.0116363,85966.0,85951.0,0.0116381]
[1766005033544,0.0116367,85962.0,85949.0,0.3608]
[1766005033742,0.011637,85960.0,85949.0,0.3608]
[1766005033940,0.01267005,85966.0,85949.0,0.3608]
[1766005034242,0.02868467,85969.0,85949.0,0.3608]
[1766005034243,0.0116362,85967.0,85949.0,0.3608]
[1766005034440,0.09127186,85967.0,85949.0,0.3608]
[1766005034744,0.00011435,85967.0,85949.0,0.3608]
[1766005034941,0.3724371,85959.0,85945.0,0.011639]
[1766005035140,0.3608,85959.0,85942.0,0.3618]
[1766005035346,0.3608,85959.0,85946.0,0.0116388]
[1766005036142,0.09410517,85967.0,85953.0,0.3608]
[1766005036657,0.10574127,85967.0,85954.0,0.0116378]
[1766005037048,0.0116363,85965.0,85953.0,0.3608]
[1766005037549,0.1847669,85963.0,85953.0,0.3608]
[1766005038052,0.0116366,85964.0,85953.0,0.3608]
[1766005038235,0.0116367,85962.0,85953.0,0.3608]
[1766005038438,0.1847669,85963.0,85953.0,0.3608]
[1766005039249,0.3608,85957.0,85946.0,0.0116388]
[1766005040244,0.3608,85963.0,85952.0,0.0116379]
[1766005040447,0.30388,85963.0,85952.0,0.0116379]
[1766005040851,0.30388,85963.0,85950.0,0.3608]
[1766005041152,0.00011435,85967.0,85962.0,0.0116367]
[1766005041447,0.00011435,85967.0,85961.0,0.3608]
[1766005042439,0.00011435,85967.0,85952.0,0.0116379]
[1766005042647,0.1847669,85962.0,85952.0,0.0116379]
[1766005042953,0.00111435,85967.0,85950.0,0.3608]
[1766005043448,0.01275055,85967.0,85950.0,0.3608]
[1766005043649,0.01275055,85967.0,85951.0,0.0116382]
[1766005044448,0.00111435,85967.0,85953.0,0.0116379]
[1766005044856,0.00111435,85967.0,85957.0,0.0116373]
[1766005045058,0.00111435,85967.0,85950.0,0.3608]
[1766005045059,0.00111435,85967.0,85950.0,0.54556856]
[1766005045248,0.00111435,85967.0,85959.0,0.011637]
[1766005045756,0.00011435,85967.0,85959.0,0.011637]
[1766005046354,0.00111435,85967.0,85954.0,0.0116377]
[1766005046552,0.00111435,85967.0,85955.0,0.0116375]
[1766005047159,0.00111435,85967.0,85950.0,0.3608]
[1766005047948,0.00011435,85967.0,85950.0,0.3608]
[1766005048257,0.00011435,85967.0,85959.0,0.011637]
[1766005048651,0.3608,85960.0,85939.0,0.00017461]
[1766005048855,0.3608,85960.0,85934.0,0.3608]
[1766005048856,0.0116406,85934.0,85916.0,0.0116429]
[1766005049058,0.0116387,85948.0,85916.0,0.3608]
[1766005049059,0.3608,85929.0,85916.0,0.3608]
[1766005049252,0.3608,85921.0,85917.0,0.67124]
[1766005049754,0.3588,85921.0,85917.0,0.67124]
[1766005049956,0.19213,85921.0,85917.0,0.67124]
[1766005050160,0.0001745,85928.0,85918.0,0.3608]
[1766005050349,0.0118159,85928.0,85918.0,0.3608]
[1766005050549,0.0001745,85928.0,85918.0,0.3608]
[1766005050750,0.0001745,85928.0,85919.0,0.73268]
[1766005051761,0.0001745,85928.0,85919.0,0.73368]
[1766005052458,0.0001745,85928.0,85918.0,0.3608]
[1766005052665,0.0001745,85928.0,85919.0,0.39928]
[1766005053054,0.0001745,85928.0,85918.0,0.3608]
[1766005053260,0.0001745,85928.0,85919.0,0.39924]
[1766005053763,0.0001745,85928.0,85918.0,0.3608]
[1766005053961,0.0001745,85928.0,85918.0,1.04372]
[1766005054560,0.08840186,85930.0,85927.0,0.3608]
[1766005054753,0.0116402,85937.0,85927.0,0.3608]
[1766005055065,0.0116397,85940.0,85927.0,0.3608]
[1766005055262,0.48358259,85941.0,85927.0,0.3608]
[1766005055655,0.001,85930.0,85927.0,0.3608]
[1766005057066,0.49620607,85941.0,85927.0,0.3608]
[1766005057267,0.0116402,85937.0,85927.0,0.3608]
[1766005058466,0.0116398,85940.0,85927.0,0.3608]
[1766005058862,0.49620607,85941.0,85934.0,0.3608]
[1766005060066,0.10590611,85941.0,85934.0,0.3608]
[1766005060259,0.10590879,85941.0,85934.0,0.3608]
[1766005060464,0.00011446,85943.0,85934.0,0.3608]
[1766005062366,0.0116394,85942.0,85934.0,0.3608]
[1766005062566,0.00011446,85943.0,85929.0,0.0001745]
[1766005062567,0.3608,85940.0,85929.0,0.0001745]
[1766005062769,0.3608,85935.0,85929.0,0.0001745]
[1766005062961,0.0116406,85934.0,85929.0,0.0001745]
[1766005063162,0.3608,85935.0,85929.0,0.0001745]
[1766005064875,0.3608,85935.0,85929.0,0.6374145]
[1766005065672,0.3608,85935.0,85929.0,0.0001745]
[1766005070870,0.0116422,85922.0,85903.0,0.3608]
[1766005071074,0.3608,85927.0,85903.0,0.3608]
[1766005071278,0.3608,85927.0,85911.0,0.37964]
[1766005071781,0.3608,85927.0,85916.0,0.0116428]
[1766005072466,0.0001745,85930.0,85917.0,0.3724427]
[1766005072877,0.0001745,85930.0,85919.0,0.0116424]
[1766005073671,0.0001745,85930.0,85920.0,0.70088]
[1766005073875,0.0001745,85930.0,85917.0,0.3734428]
[1766005074173,0.0001745,85930.0,85921.0,0.73196]
[1766005074576,0.0001745,85930.0,85922.0,0.0116421]
[1766005074975,0.0001745,85930.0,85921.0,0.73196]
[1766005075172,0.0001745,85930.0,85922.0,0.011642]
[1766005075979,0.0001745,85930.0,85923.0,0.0116419]
[1766005076373,0.0001745,85930.0,85921.0,0.73196]
[1766005076575,0.3608,85935.0,85928.0,0.0116413]
[1766005076780,0.3608,85935.0,85926.0,0.0116416]
[1766005077183,0.3608,85935.0,85925.0,0.0116417]
[1766005077785,0.3608,85935.0,85922.0,0.011642]
[1766005077974,0.3608,85935.0,85921.0,0.73196]
[1766005078289,0.3724404,85935.0,85921.0,0.73196]
[1766005078487,0.3608,85935.0,85920.0,0.0116423]
[1766005078687,0.3608,85935.0,85921.0,0.73184]
[1766005079174,0.3608,85935.0,85924.0,0.3608]
[1766005079577,0.3608,85935.0,85925.0,0.7318]
[1766005079987,0.3608,85935.0,85924.0,0.3608]
[1766005080188,0.3608,85935.0,85929.0,0.0116412]
[1766005080585,0.3608,85935.0,85925.0,0.7318]
[1766005080788,0.3608,85935.0,85910.0,0.18489809]
[1766005080987,0.3608,85915.0,85913.0,4.5e-06]
[1766005081175,0.3608,85915.0,85902.0,0.3724447]
[1766005081682,0.3608,85915.0,85906.0,0.0116442]
[1766005081885,0.36063,85915.0,85906.0,0.0116442]
[1766005082391,0.36063,85915.0,85905.0,0.0116444]
[1766005082793,0.36063,85915.0,85904.0,0.3608]
[1766005082986,0.36063,85915.0,85906.0,0.001]
[1766005083183,0.36063,85915.0,85909.0,0.0116439]
[1766005083388,0.36063,85915.0,85906.0,0.0116442]
[1766005083590,0.36063,85915.0,85908.0,0.011644]
[1766005084294,0.36063,85915.0,85910.0,0.0116437]
[1766005084791,0.0001745,85919.0,85914.0,0.3608]
[1766005087896,0.02910832,85929.0,85914.0,0.3608]
[1766005088092,0.0116421,85922.0,85914.0,0.3608]
[1766005088386,0.57409347,85930.0,85914.0,0.3608]
[1766005088587,0.3608,85916.0,85905.0,0.0116444]
[1766005088902,0.3608,85916.0,85907.0,0.0116442]
[1766005089088,0.3608,85916.0,85906.0,0.36844]
[1766005089288,0.3608,85916.0,85904.0,0.3608]
[1766005089490,0.3608,85916.0,85910.0,0.0116438]
[1766005090394,0.3608,85916.0,85907.0,0.0116441]
[1766005091395,0.3608,85916.0,85907.0,0.6404]
[1766005093700,0.3608,85916.0,85908.0,0.011644]
[1766005094401,0.3608,85916.0,85907.0,0.6404]
[1766005095304,0.3608,85916.0,85906.0,0.0116443]
[1766005095505,0.3608,85916.0,85907.0,0.678]
[1766005096405,0.00011446,85919.0,85915.0,0.3608]
[1766005098598,0.00111446,85919.0,85915.0,0.3608]
[1766005099203,6e-08,85919.0,85915.0,0.3608]
[1766005099404,6e-08,85919.0,85917.0,0.0116427]
[1766005101010,0.0116401,85937.0,85921.0,0.0116422]
[1766005101205,0.0116401,85937.0,85927.0,0.3608]
[1766005102307,0.0126401,85937.0,85927.0,0.3608]
[1766005103209,0.001,85937.0,85927.0,0.3608]
[1766005103598,0.3608,85933.0,85921.0,0.44348]
[1766005103801,0.18491532,85931.0,85921.0,0.44348]
[1766005104012,0.18491532,85931.0,85920.0,0.0001745]
[1766005104408,0.3608,85925.0,85920.0,0.0001745]
[1766005105711,0.3608,85925.0,85916.0,0.3608]
[1766005106206,0.3724418,85925.0,85912.0,0.73128]
[1766005106412,0.3724418,85925.0,85910.0,0.3724436]
[1766005107208,0.3724418,85925.0,85910.0,0.6635636]
[1766005108616,0.3724418,85925.0,85910.0,0.6645636]
[1766005108911,0.011642,85924.0,85910.0,0.3734436]
[1766005109207,0.18491532,85920.0,85910.0,0.3618]
[1766005109515,0.3608,85918.0,85910.0,0.3618]
[1766005109705,0.3608,85918.0,85910.0,0.3734438]
[1766005110106,0.3608,85918.0,85910.0,0.3618]
[1766005110913,0.3608,85918.0,85910.0,0.3724437]
[1766005111103,0.3608,85918.0,85910.0,0.3734437]
[1766005111304,0.3608,85918.0,85910.0,0.3618]
[1766005111504,0.3608,85918.0,85910.0,0.3608]
[1766005112216,0.3608,85918.0,85910.0,0.3618]
[1766005112606,0.3608,85918.0,85910.0,0.3608]
[1766005112806,0.3608,85918.0,85909.0,0.0001745]
[1766005113006,0.3608,85918.0,85910.0,0.0116438]
[1766005113206,0.3608,85918.0,85909.0,0.0001745]
[1766005113414,0.0001745,85926.0,85917.0,0.3608]
[1766005113618,0.0118162,85926.0,85917.0,0.3608]
[1766005113916,0.0001745,85926.0,85917.0,0.3608]
[1766005114115,0.0116419,85924.0,85917.0,0.3608]
[1766005115421,0.0116419,85924.0,85911.0,0.0116435]
[1766005115422,0.0001745,85926.0,85909.0,0.0001745]
[1766005115607,0.3608,85919.0,85912.0,0.0116434]
[1766005116007,0.3608,85919.0,85909.0,0.0118183]
[1766005116811,0.3608,85919.0,85909.0,0.0001745]
[1766005117311,0.3608,85919.0,85909.0,0.0118184]
[1766005117706,0.3608,85919.0,85909.0,0.0001745]
[1766005117906,0.3608,85919.0,85909.0,0.0011745]
[1766005118518,0.3608,85919.0,85909.0,0.0118184]
[1766005118709,0.3608,85919.0,85909.0,0.0001745]
[1766005121713,0.0001745,85926.0,85917.0,0.3608]
[1766005121914,4.5e-06,85926.0,85920.0,0.0116424]
[1766005122109,4.5e-06,85926.0,85922.0,0.0116421]
[1766005122309,4.5e-06,85926.0,85917.0,0.3608]
[1766005122510,4.5e-06,85926.0,85918.0,0.0116427]
[1766005123009,4.5e-06,85926.0,85917.0,0.3608]
[1766005124209,4.5e-06,85926.0,85917.0,0.3618]
[1766005124708,4.5e-06,85926.0,85917.0,0.3608]
[1766005127011,4.5e-06,85926.0,85917.0,0.3618]
[1766005127411,4.5e-06,85926.0,85917.0,0.3608]
[1766005128410,4.5e-06,85926.0,85918.0,0.0116427]
[1766005128613,4.5e-06,85926.0,85925.0,0.3724417]
[1766005128818,4.5e-06,85926.0,85925.0,1.1036817]
[1766005129222,0.09511283,85943.0,85930.0,0.011641]
[1766005129423,0.011639,85946.0,85937.0,0.3608]
[1766005129625,0.0116392,85945.0,85937.0,0.3608]
[1766005129923,0.0116387,85948.0,85937.0,0.3608]
[1766005130123,0.0116389,85946.0,85937.0,0.3608]
[1766005130319,0.0116386,85949.0,85937.0,0.3608]
[1766005130524,0.0116388,85947.0,85937.0,0.3608]
[1766005130721,0.001,85945.0,85937.0,0.3608]
[1766005130928,0.3608,85958.0,85944.0,0.3608]
[1766005130929,0.18491532,85950.0,85944.0,0.3608]
[1766005131119,0.01449146,85950.0,85944.0,0.3608]
[1766005131423,0.0911811,85965.0,85944.0,0.3608]
[1766005131624,0.19655102,85970.0,85957.0,0.3608]
[1766005131928,0.18491532,85970.0,85957.0,0.3608]
[1766005132130,0.0116359,85969.0,85957.0,0.3608]
[1766005132427,1.01411947,85967.0,85957.0,0.3608]
[1766005132727,1.21067089,85967.0,85957.0,0.3608]
[1766005132927,1.21067089,85967.0,85957.0,0.3618]
[1766005133122,1.21067089,85967.0,85957.0,0.19513]
[1766005133322,0.0116364,85965.0,85957.0,0.19513]
[1766005134224,0.0116366,85963.0,85957.0,0.19513]
[1766005134531,0.0116366,85963.0,85957.0,0.19413]
[1766005134729,0.0116362,85966.0,85957.0,0.19413]
[1766005135425,0.0116365,85964.0,85953.0,0.0001745]
[1766005135823,0.18477011,85963.0,85953.0,0.0001745]
[1766005137027,0.3608,85959.0,85953.0,0.0001745]
[1766005137628,0.3608,85959.0,85946.0,0.3608]
[1766005137831,0.3608,85950.0,85936.0,0.3724402]
[1766005138031,0.54557011,85950.0,85937.0,0.3664]
[1766005138526,0.54557011,85950.0,85936.0,0.3724402]
[1766005138725,0.55720851,85950.0,85936.0,1.08616]
[1766005138919,0.54557011,85950.0,85936.0,1.08616]
[1766005139525,0.54557011,85950.0,85937.0,0.0116401]
[1766005140024,0.54557011,85950.0,85936.0,0.3618]
[1766005140225,0.0001745,85952.0,85936.0,1.09284]
[1766005140532,0.3724371,85959.0,85943.0,0.0116393]
[1766005140724,0.3608,85959.0,85936.0,0.3618]
[1766005140926,0.18477011,85950.0,85936.0,0.3618]
[1766005141233,0.0116405,85934.0,85917.0,0.3608]
[1766005141436,0.3608,85933.0,85918.0,0.0116427]
[1766005141632,0.3608,85933.0,85917.0,0.3608]
[1766005141633,0.3724407,85933.0,85917.0,0.7248]
[1766005142030,0.3608,85933.0,85917.0,0.7248]
[1766005142235,0.19413,85933.0,85926.0,0.3608]
[1766005142426,0.0001745,85934.0,85926.0,0.3608]
[1766005142427,4.5e-06,85934.0,85932.0,0.0116407]
[1766005142732,4.5e-06,85934.0,85933.0,0.3608]
[1766005142929,0.3608045,85934.0,85918.0,0.3608]
[1766005143130,0.18477011,85930.0,85919.0,0.36664]
[1766005143330,0.3608045,85934.0,85921.0,0.0116422]
[1766005143538,0.3608045,85934.0,85918.0,0.3724426]
[1766005143733,0.3608045,85934.0,85933.0,0.001]
[1766005144041,0.0116396,85941.0,85933.0,0.001]
[1766005144237,0.3608,85954.0,85936.0,0.3608]
[1766005144442,0.18477011,85950.0,85936.0,0.3608]
[1766005144735,0.0116408,85932.0,85919.0,0.3608]
[1766005144936,0.3608,85928.0,85919.0,0.3608]
[1766005145136,0.3608,85931.0,85922.0,0.0116421]
[1766005145333,0.3608,85939.0,85926.0,0.3608]
[1766005146332,0.3608,85939.0,85927.0,0.0116414]
[1766005146532,0.64012769,85950.0,85935.0,0.3608]
[1766005146732,0.45535758,85950.0,85935.0,0.3608]
[1766005146936,0.64012769,85950.0,85935.0,0.3608]
[1766005147536,0.3608,85939.0,85926.0,0.3618]
[1766005148242,0.3608,85939.0,85926.0,0.001]
[1766005148630,0.3608,85939.0,85921.0,0.0116422]
[1766005148831,0.3724399,85939.0,85919.0,0.71032]
[1766005149027,0.3724399,85939.0,85917.0,0.0001745]
[1766005149028,0.3608,85929.0,85917.0,0.0001745]
[1766005149233,0.3608,85929.0,85901.0,0.011645]
[1766005149234,0.3608,85921.0,85901.0,0.011645]
[1766005149433,0.18477011,85920.0,85901.0,0.011645]
[1766005149633,0.18477011,85920.0,85900.0,0.3608]
[1766005149835,0.18477011,85910.0,85900.0,0.3608]
[1766005150326,0.3608,85921.0,85900.0,0.3608]
[1766005150327,0.00017461,85914.0,85900.0,0.3608]
[1766005151148,0.01487774,85914.0,85900.0,0.3608]
[1766005151332,0.3608,85911.0,85900.0,0.3608]
[1766005151533,0.3608,85911.0,85901.0,0.001]
[1766005152031,0.3608,85911.0,85900.0,0.001]
[1766005152742,0.3608,85911.0,85896.0,0.3608]
[1766005153347,0.18477011,85910.0,85897.0,0.0116455]
[1766005154035,0.18477011,85910.0,85896.0,0.3608]
[1766005154340,0.18477011,85910.0,85897.0,0.0116455]
[1766005154846,0.18477011,85910.0,85896.0,0.3618]
[1766005155342,0.3608,85911.0,85895.0,0.00017461]
[1766005155343,0.3608,85903.0,85895.0,0.00017461]
[1766005156732,0.3608,85911.0,85895.0,0.01182031]
[1766005156938,0.3608,85911.0,85895.0,0.37262031]
[1766005157239,0.3608,85911.0,85895.0,0.36097461]
[1766005157540,0.3608,85911.0,85896.0,0.0116456]
[1766005157744,0.18477011,85910.0,85895.0,0.36097461]
[1766005157941,0.3608,85901.0,85888.0,0.0116466]
[1766005158142,0.18477011,85900.0,85888.0,0.0116466]
[1766005158341,0.3608,85901.0,85883.0,0.49976]
[1766005158342,0.3608,85901.0,85890.0,0.0116465]
[1766005158744,0.18477011,85900.0,85887.0,0.0116468]
[1766005159344,0.18477011,85900.0,85888.0,0.001]
[1766005159741,0.18477011,85900.0,85888.0,0.0126467]
[1766005159937,0.3608,85889.0,85865.0,0.3608]
[1766005160144,0.3608,85899.0,85881.0,0.3608]
[1766005160340,0.3608,85899.0,85889.0,0.3608]
[1766005160940,0.00012387,85898.0,85889.0,0.3608]
[1766005161148,0.3608,85890.0,85867.0,0.3608]
[1766005161347,0.3608,85883.0,85867.0,0.3608]
[1766005161546,0.3608,85883.0,85864.0,0.37372]
[1766005161547,0.00012387,85898.0,85884.0,0.3608]
[1766005161847,0.19413,85885.0,85868.0,0.3724494]
[1766005162048,0.00017461,85885.0,85876.0,0.3608]
[1766005162353,0.09473307,85892.0,85876.0,0.3608]
[1766005162653,0.011647,85886.0,85876.0,0.3608]
[1766005162841,0.3608,85881.0,85868.0,0.00017461]
[1766005163044,0.3608,85871.0,85868.0,1e-08]
[1766005163454,9.449e-05,85880.0,85868.0,1e-08]
[1766005163653,0.011648,85879.0,85868.0,1e-08]
[1766005163953,0.0116484,85876.0,85868.0,1e-08]
[1766005164255,0.011648,85879.0,85868.0,1e-08]